bitfinex-derivatives/quotes_SOLF0:USTF0_20250202
["timestamp","ask_amount","ask_price","bid_price","bid_amount"]
[1738514252530,0.03259668,207.13,207.11,4.8295]
[1738514252725,0.03259668,207.13,207.09,0.03207809]
[1738514254125,22.93369661,207.13,206.9,22.90109993]
[1738514254326,22.90109993,207.09,206.9,22.90109993]
[1738514254527,4.88122742,207.08,206.9,22.90109993]
[1738514254831,22.90109993,207.05,206.82,1.0352]
[1738514255420,0.03326246,206.98,206.93,0.03695778]
[1738514255820,6.246e-05,206.98,206.96,4.8329]
[1738514256023,6.246e-05,206.98,206.97,22.90109993]
[1738514256230,1.95952742,207.13,206.97,22.90109993]
[1738514256422,24.86062735,207.13,206.97,22.90109993]
[1738514257128,1.95952742,207.13,207.01,22.90109993]
[1738514257327,1.95952742,207.13,207.06,4.8305]
[1738514257620,0.03639096,207.09,207.05,0.03478557]
[1738514258022,3.0429,207.15,207.01,22.90109993]
[1738514258223,9.728e-05,207.09,207.05,22.93642709]
[1738514258422,9.728e-05,207.09,207.08,4.8302]
[1738514258623,9.728e-05,207.09,206.9,37.34109993]
[1738514258624,1.95952742,207.12,206.93,22.90109993]
[1738514258821,22.90109993,207.09,206.89,33.88039972]
[1738514259020,22.90109993,207.05,206.89,33.88039972]
[1738514259628,0.03232835,206.99,206.95,0.03595996]
[1738514260126,0.0307534,206.99,206.95,0.0369762]
[1738514260637,4.8328,206.97,206.95,0.0369762]
[1738514260832,0.0307534,206.99,206.95,0.0369762]
[1738514261233,0.0307534,206.99,206.97,4.8327]
[1738514261435,0.0307534,206.99,206.95,0.0369762]
[1738514261840,0.0307534,206.99,206.97,4.8327]
[1738514262227,4.8631534,206.99,206.95,0.0369762]
[1738514262433,0.0307534,206.99,206.95,0.0369762]
[1738514264331,4.8329,206.97,206.95,0.0369762]
[1738514264632,0.0307534,206.99,206.89,22.90109993]
[1738514264933,1.95952742,207.06,206.89,22.90109993]
[1738514265134,1.95952742,207.06,206.93,22.90109993]
[1738514265937,0.03370216,207.02,207.01,4.8318]
[1738514266137,0.03370216,207.02,206.97,0.03093278]
[1738514266436,4.8321,207.0,206.97,0.03409592]
[1738514266638,0.03370216,207.02,206.97,0.03409592]
[1738514266837,1.95952742,207.01,206.97,0.03409592]
[1738514267337,24.86062735,207.01,206.97,0.03409592]
[1738514267638,1.95952742,207.01,206.97,0.03409592]
[1738514268036,0.03370216,207.02,206.97,0.03409592]
[1738514268537,0.03370216,207.02,207.0,4.832]
[1738514268835,2.16e-06,207.02,207.0,4.832]
[1738514269038,2.16e-06,207.02,207.0,27.73309993]
[1738514269337,25.97649993,207.17,207.0,27.73309993]
[1738514269338,4.98882742,207.19,207.0,45.80219986]
[1738514269534,4.98882742,207.19,207.06,22.90109993]
[1738514269832,1.95952742,207.19,207.09,4.8298]
[1738514270032,22.90109993,207.17,206.96,22.90109993]
[1738514270234,1.95952742,207.19,206.91,1.0739]
[1738514270235,22.90109993,207.13,206.91,1.0739]
[1738514270438,3.0754,207.12,206.92,0.88751374]
[1738514270637,22.93392629,207.09,207.04,0.03173138]
[1738514270832,3.0293,207.08,206.9,22.90109993]
[1738514271035,4.98882742,207.08,206.9,22.90109993]
[1738514271230,4.98882742,207.08,206.95,4.8332]
[1738514271435,22.90109993,207.05,206.87,131.85870881]
[1738514271634,4.98882742,207.08,206.9,22.90109993]
[1738514272040,0.03605263,207.01,206.97,0.03710767]
[1738514272532,1.95952742,207.0,206.82,22.90109993]
[1738514272736,26.05709993,206.99,206.82,22.90109993]
[1738514272929,22.90109993,206.99,206.82,22.90109993]
[1738514273133,1.95952742,207.0,206.86,22.90109993]
[1738514273537,0.03261832,206.95,206.91,0.03067875]
[1738514273938,0.03261832,206.95,206.93,4.8335]
[1738514274637,0.03261832,206.95,206.91,4.86467875]
[1738514274836,0.03261832,206.95,206.91,0.03067875]
[1738514275237,1.95952742,207.0,206.97,4.8326]
[1738514275432,1.95952742,207.05,206.92,22.90109993]
[1738514275843,1.95952742,207.05,206.95,4.833]
[1738514276132,1.95952742,207.05,206.92,22.90109993]
[1738514276538,0.03585944,207.02,206.98,0.03372249]
[1738514277442,1.95952742,207.1,206.98,0.03372249]
[1738514277740,1.95952742,207.1,206.96,22.90109993]
[1738514277942,1.95952742,207.16,207.0,22.90109993]
[1738514278238,1.95952742,207.21,207.08,22.90109993]
[1738514278439,1.95952742,207.21,207.11,4.8293]
[1738514278739,9.115e-05,207.17,207.12,22.93249957]
[1738514278941,9.115e-05,207.17,207.16,22.90109993]
[1738514279135,6.33863531,207.29,207.16,22.90109993]
[1738514279345,18.89241555,207.3,207.25,22.90109993]
[1738514279642,15.96019453,207.31,207.29,27.72639993]
[1738514279841,125.52614254,207.34,207.29,27.72639993]
[1738514279842,125.32755161,207.34,207.3,22.90109993]
[1738514280043,16.96675733,207.35,207.3,22.90109993]
[1738514280243,64.07728844,207.36,207.34,50.62629986]
[1738514280439,1.95952742,207.58,207.35,22.90109993]
[1738514280642,6.0973,207.72,207.47,45.80219986]
[1738514280835,6.0973,207.72,207.57,22.90109993]
[1738514281344,6.661e-05,207.58,207.56,4.8189]
[1738514281537,177.37510625,207.65,207.54,0.03716805]
[1738514281744,2.8657,207.79,207.64,22.90109993]
[1738514282139,2.8657,207.79,207.78,266.17479482]
[1738514282339,12.5394,207.79,207.78,51.8450692]
[1738514282639,30.62679993,207.79,207.55,3.79092027]
[1738514282944,22.90109993,207.68,207.52,0.98]
[1738514283134,22.90109993,207.68,207.65,4.322e-05]
[1738514283335,22.90109993,207.72,207.65,4.322e-05]
[1738514283539,4.8141,207.78,207.61,22.90109993]
[1738514283739,22.90109993,207.84,207.62,9.2408]
[1738514283936,22.90109993,207.84,207.65,22.90109993]
[1738514284249,22.90109993,207.9,207.69,22.90109993]
[1738514284441,23.62050492,208.0,207.69,22.90109993]
[1738514284442,22.90109993,207.94,207.73,22.90109993]
[1738514284745,22.90109993,208.02,207.81,22.90109993]
[1738514284943,0.03226558,207.86,207.85,22.90109993]
[1738514285240,22.90109993,208.06,207.85,22.90109993]
[1738514285442,22.90109993,208.02,207.89,0.03620095]
[1738514285644,4.8093,207.99,207.89,0.03620095]
[1738514285843,22.90109993,208.02,207.81,22.90109993]
[1738514286043,22.90109993,207.98,207.81,22.90109993]
[1738514286243,22.90109993,208.02,207.81,22.90109993]
[1738514286446,0.03467184,207.94,207.89,0.03251898]
[1738514286946,4.8106,207.93,207.81,22.90109993]
[1738514287140,0.03467184,207.94,207.81,22.90109993]
[1738514287342,22.90109993,208.02,207.89,0.03430962]
[1738514287747,22.90109993,207.98,207.83,195.5788928]
[1738514288044,22.90109993,207.98,207.9,20.26214365]
[1738514288249,22.90109993,207.94,207.9,4.365e-05]
[1738514288449,4.8109,207.91,207.9,4.365e-05]
[1738514288946,22.90109993,207.94,207.73,22.90109993]
[1738514289142,22.90109993,208.0,207.69,23.88109993]
[1738514289143,22.90109993,207.89,207.69,23.88109993]
[1738514289538,22.90109993,207.85,207.65,32.12479993]
[1738514289739,22.90109993,207.85,207.65,9.2237]
[1738514290142,27.84109993,207.89,207.64,196.5588928]
[1738514290143,22.90109993,207.73,207.64,195.5788928]
[1738514290343,22.90109993,207.69,207.64,195.5204928]
[1738514290546,4.8169,207.65,207.64,180.3363928]
[1738514290945,4.8169,207.65,207.64,172.8711928]
[1738514291139,4.8166,207.67,207.64,158.0885096]
[1738514291345,0.0324604,207.67,207.64,158.0885096]
[1738514291842,0.0324604,207.67,207.62,22.90109993]
[1738514292040,0.0324604,207.67,207.66,22.90109993]
[1738514292244,4.92,207.86,207.66,22.90109993]
[1738514292445,4.92,207.86,207.71,22.90109993]
[1738514292643,0.96223237,207.85,207.71,22.90109993]
[1738514293249,0.96223237,207.85,207.67,23.88109993]
[1738514293450,4.8131,207.82,207.67,23.88109993]
[1738514293751,0.03154943,207.8,207.76,7.35e-05]
[1738514293952,4.8142,207.77,207.76,7.35e-05]
[1738514294342,22.90109993,207.78,207.57,0.98]
[1738514294546,4.8159,207.7,207.57,0.98]
[1738514294855,22.90109993,207.73,207.55,22.90109993]
[1738514295054,22.90109993,207.73,207.56,0.96357679]
[1738514295550,4.8178,207.62,207.56,0.96357679]
[1738514295846,22.90109993,207.65,207.56,0.96357679]
[1738514296050,22.90109993,207.65,207.62,0.03110073]
[1738514296252,4.8172,207.64,207.62,7.3e-07]
[1738514296953,22.90109993,207.9,207.62,7.3e-07]
[1738514296954,22.90109993,207.77,207.62,7.3e-07]
[1738514297453,22.90109993,207.77,207.58,23.88109993]
[1738514297650,0.03606949,207.72,207.58,23.88109993]
[1738514297854,0.03606949,207.72,207.67,0.03396335]
[1738514298347,22.90109993,207.88,207.7,22.90109993]
[1738514298743,27.78109993,207.92,207.7,22.90109993]
[1738514298947,0.96195469,207.91,207.74,22.90109993]
[1738514299153,4.8113,207.9,207.74,22.90109993]
[1738514299348,0.96204723,207.89,207.74,23.88109993]
[1738514299650,0.96204723,207.89,207.8,4.8134]
[1738514299853,0.96204723,207.89,207.74,23.88109993]
[1738514300152,0.03311038,207.84,207.79,0.03229599]
[1738514301446,4.8134,207.81,207.79,9.599e-05]
[1738514301646,22.90109993,207.8,207.65,0.98]
[1738514301951,22.90109993,207.8,207.54,4.86]
[1738514301952,22.90109993,207.68,207.54,0.98]
[1738514302152,22.90109993,207.72,207.49,0.98]
[1738514302453,5.82251022,207.79,207.49,0.98]
[1738514302454,22.90109993,207.76,207.58,22.90109993]
[1738514302655,4.8158,207.7,207.58,27.71949993]
[1738514302847,0.03500864,207.63,207.62,22.90109993]
[1738514303048,5.82251022,207.79,207.62,22.90109993]
[1738514303256,0.96255655,207.78,207.66,22.90109993]
[1738514303655,0.96255655,207.78,207.66,23.88109993]
[1738514304553,0.03151442,207.74,207.7,22.93702072]
[1738514304859,0.96255655,207.78,207.7,27.75262072]
[1738514305155,22.90109993,207.81,207.7,0.03592079]
[1738514305358,4.8155,207.72,207.7,2.079e-05]
[1738514305557,22.90109993,207.73,207.6,6.2748]
[1738514305763,22.90109993,207.69,207.51,6.3328]
[1738514306064,22.90109993,207.69,207.52,0.96376252]
[1738514306366,4.8172,207.64,207.52,0.96376252]
[1738514306562,22.90109993,207.69,207.52,0.96376252]
[1738514306862,0.03071077,207.63,207.58,0.030474]
[1738514307268,0.03071077,207.63,207.58,7.4e-05]
[1738514307468,4.8182,207.6,207.58,7.4e-05]
[1738514308066,22.90109993,207.61,207.43,0.98]
[1738514308267,22.90109993,207.51,207.38,0.98]
[1738514308570,22.90109993,207.51,207.31,4.2802]
[1738514309266,27.74109993,207.59,207.42,22.90109993]
[1738514309466,22.90109993,207.69,207.46,22.90109993]
[1738514309467,22.90109993,207.63,207.46,22.90109993]
[1738514310059,0.03250873,207.53,207.45,5.8015]
[1738514310463,0.03250873,207.53,207.52,0.03335259]
[1738514310661,0.03250873,207.53,207.41,6.1152]
[1738514311066,0.03250873,207.53,207.41,3.0172]
[1738514311263,22.90109993,207.51,207.35,0.98]
[1738514311466,22.90109993,207.47,207.31,3.3002]
[1738514311663,4.8222,207.43,207.31,3.3002]
[1738514311966,22.90109993,207.47,207.31,3.3002]
[1738514312173,0.03223032,207.41,207.37,0.03199423]
[1738514312468,4.8231,207.39,207.37,9.423e-05]
[1738514312669,22.90109993,207.44,207.25,3.8817]
[1738514313072,22.90109993,207.4,207.25,2.9017]
[1738514313368,4.8249,207.31,207.21,8.1642]
[1738514313564,4.8249,207.31,207.21,3.3371]
[1738514313762,22.90109993,207.36,207.21,3.3371]
[1738514313966,0.03532223,207.3,207.25,0.03636401]
[1738514314160,0.03532223,207.3,207.25,1.01636401]
[1738514314364,4.8228,207.4,207.29,4.8251]
[1738514314559,4.8,207.41,207.29,4.8251]
[1738514314764,27.68109993,207.5,207.3,0.98]
[1738514315068,22.90109993,207.46,207.3,0.98]
[1738514315466,4.8224,207.42,207.33,4.8243]
[1738514315769,0.03636298,207.4,207.36,0.03167004]
[1738514316161,22.90109993,207.54,207.35,0.98]
[1738514316365,22.90109993,207.54,207.37,22.90109993]
[1738514316566,4.8199,207.53,207.37,22.90109993]
[1738514316765,4.78,207.58,207.37,22.90109993]
[1738514316963,22.90109993,207.54,207.37,22.90109993]
[1738514317569,0.03066547,207.48,207.43,0.03638362]
[1738514318269,4.76,207.63,207.43,0.03638362]
[1738514318471,27.66109993,207.63,207.45,22.90109993]
[1738514318776,22.90109993,207.67,207.49,22.90109993]
[1738514319070,22.90109993,207.62,207.46,3.0526]
[1738514319273,22.90109993,207.62,207.47,0.98]
[1738514319570,22.90109993,207.62,207.48,3.3494]
[1738514319776,0.03344361,207.56,207.52,0.03468816]
[1738514320769,0.03344361,207.56,207.54,4.8194]
[1738514320974,22.90109993,207.7,207.52,1.01468816]
[1738514321174,22.90109993,207.7,207.52,23.91578809]
[1738514321473,22.90109993,207.7,207.52,23.88109993]
[1738514321675,22.90109993,207.7,207.52,0.98]
[1738514321877,4.8178,207.62,207.53,8.54933839]
[1738514322068,22.90109993,207.66,207.53,8.54933839]
[1738514322377,0.03345169,207.6,207.55,0.03439198]
[1738514322673,22.90109993,207.58,207.41,0.98]
[1738514322878,4.8202,207.52,207.43,4.822]
[1738514323276,22.90109993,207.62,207.41,23.88109993]
[1738514323574,22.90109993,207.7,207.49,22.90109993]
[1738514323777,22.90109993,207.62,207.5,6.0542]
[1738514324074,0.03405211,207.54,207.5,3.1689]
[1738514324277,22.90109993,207.66,207.5,3.1689]
[1738514324470,4.8172,207.64,207.55,4.8192]
[1738514324673,22.90109993,207.66,207.5,4.1489]
[1738514325480,4.8178,207.62,207.52,4.8199]
[1738514325777,0.0348564,207.6,207.56,0.0350089]
[1738514325973,0.0348564,207.6,207.56,8.9e-06]
[1738514325974,22.90109993,207.58,207.56,8.9e-06]
[1738514326175,22.90109993,207.58,207.2,22.90109993]
[1738514326176,22.90109993,207.58,207.33,22.90109993]
[1738514326474,22.90109993,207.5,207.33,23.88109993]
[1738514326878,22.90109993,207.5,207.33,0.98]
[1738514327073,22.90109993,207.46,207.33,0.98]
[1738514327280,22.90109993,207.42,207.32,3.2276]
[1738514327575,4.8225,207.41,207.39,0.03528961]
[1738514327779,0.03470849,207.44,207.39,0.03528961]
[1738514327981,27.58109993,207.46,207.39,0.03528961]
[1738514328172,4.8219,207.44,207.34,4.824]
[1738514328378,4.8219,207.44,207.32,0.98]
[1738514328379,0.03068444,207.44,207.32,23.88109993]
[1738514328581,0.03068444,207.44,207.4,0.03085686]
[1738514330376,4.8196,207.54,207.4,0.03085686]
[1738514330783,22.90109993,207.6,207.38,22.90109993]
[1738514330978,22.90109993,207.6,207.42,22.90109993]
[1738514331173,22.90109993,207.6,207.43,3.383]
[1738514331476,0.565,207.69,207.43,3.383]
[1738514331477,0.3872,207.69,207.46,22.90109993]
[1738514331779,0.03385912,207.54,207.49,0.03129432]
[1738514331977,4.8166,207.67,207.56,4.8189]
[1738514332280,22.90109993,207.71,207.51,22.90109993]
[1738514332483,4.8162,207.69,207.59,4.8183]
[1738514332672,22.90109993,207.71,207.51,22.90109993]
[1738514332673,22.90109993,207.71,207.55,22.90109993]
[1738514332876,22.90109993,207.8,207.59,22.90109993]
[1738514333077,22.90109993,207.8,207.6,6.8246]
[1738514333286,22.90109993,207.84,207.68,22.90109993]
[1738514333676,22.90109993,207.84,207.73,4.815]
[1738514333877,4.8124,207.85,207.69,0.98]
[1738514334084,22.90109993,207.88,207.69,0.98]
[1738514334677,4.8125,207.85,207.76,0.0352064]
[1738514334885,0.03264886,207.81,207.76,0.0352064]
[1738514335279,22.90109993,207.8,207.62,0.98]
[1738514335479,22.90109993,207.76,207.62,0.98]
[1738514335985,22.90109993,207.8,207.62,0.98]
[1738514336184,22.90109993,207.84,207.64,22.90109993]
[1738514336479,0.03494085,207.73,207.69,0.03336531]
[1738514336681,22.90109993,207.84,207.69,0.03336531]
[1738514336878,4.8138,207.79,207.68,0.98]
[1738514337085,22.90109993,207.8,207.68,0.98]
[1738514337285,22.90109993,207.76,207.62,0.98]
[1738514337487,4.8147,207.75,207.64,4.8171]
[1738514337881,22.90109993,207.8,207.67,0.03081562]
[1738514337882,0.0368584,207.72,207.67,0.03081562]
[1738514338282,22.90109993,207.68,207.45,127.88118631]
[1738514338582,22.90109993,207.6,207.46,3.836]
[1738514338790,22.90109993,207.56,207.45,127.88118631]
[1738514339183,22.90109993,207.64,207.47,22.90109993]
[1738514339385,22.90109993,207.68,207.51,22.90109993]
[1738514339584,22.90109993,207.72,207.55,22.90109993]
[1738514339789,22.90109993,207.76,207.59,22.90109993]
[1738514340079,22.90109993,207.84,207.63,22.90109993]
[1738514340285,22.90109993,207.84,207.64,3.1126]
[1738514340480,22.90109993,207.84,207.64,4.0926]
[1738514340684,22.90109993,207.8,207.64,4.0926]
[1738514340882,22.90109993,207.76,207.64,3.1126]
[1738514341087,22.90109993,207.72,207.6,4.818]
[1738514341282,22.90109993,207.72,207.7,0.03240667]
[1738514341588,22.90109993,207.72,207.57,3.0981]
[1738514341788,22.90109993,207.72,207.57,6.0697]
[1738514342381,22.90109993,207.68,207.57,2.9716]
[1738514342582,22.90109993,207.64,207.48,0.98]
[1738514342790,27.72029993,207.56,207.42,15.6134]
[1738514342981,22.90109993,207.6,207.42,33.69229993]
[1738514343289,22.90109993,207.64,207.54,0.03547207]
[1738514343484,22.90109993,207.7,207.5,22.90109993]
[1738514343691,22.90109993,207.7,207.54,22.90109993]
[1738514343886,22.90109993,207.7,207.57,0.03704339]
[1738514344086,22.90109993,207.74,207.57,0.03704339]
[1738514344490,22.90109993,207.74,207.56,6.7449]
[1738514344790,22.90109993,207.66,207.63,2.246e-05]
[1738514345092,4.8169,207.65,207.63,2.246e-05]
[1738514345292,22.90109993,207.66,207.47,3.17]
[1738514345488,22.90109993,207.54,207.42,6.7449]
[1738514346190,22.90109993,207.46,207.37,127.88118631]
[1738514346582,22.90109993,207.54,207.46,0.03503291]
[1738514346991,0.03635192,207.44,207.38,25.87719993]
[1738514347192,9.3787,207.58,207.48,4.8209]
[1738514347393,4.56,207.58,207.48,4.85599541]
[1738514347594,4.56,207.58,207.48,0.03509541]
[1738514348195,22.90109993,207.64,207.49,0.98]
[1738514348594,6.468e-05,207.55,207.5,22.90109993]
[1738514348793,6.468e-05,207.55,207.54,4.8195]
[1738514349094,6.468e-05,207.55,207.49,0.98]
[1738514349095,22.90109993,207.6,207.43,0.98]
[1738514349389,22.90109993,207.56,207.39,6.5295]
[1738514349791,22.90109993,207.52,207.39,6.5295]
[1738514349988,0.0342008,207.5,207.45,0.03249065]
[1738514350293,22.90109993,207.48,207.33,0.98]
[1738514350795,22.90109993,207.43,207.31,3.0148]
[1738514350998,22.90109993,207.43,207.3,127.88118631]
[1738514351394,22.90109993,207.39,207.23,0.98]
[1738514351594,22.90109993,207.39,207.16,127.88118631]
[1738514351595,4.8252,207.3,207.19,6.5786]
[1738514352000,3.8452,207.3,207.19,6.5786]
[1738514352296,22.90109993,207.35,207.23,0.03377916]
[1738514352493,22.90109993,207.39,207.23,0.03377916]
[1738514352696,4.8261,207.26,207.23,0.03377916]
[1738514352996,4.8261,207.26,207.16,127.88118631]
[1738514352997,0.03063965,207.28,207.16,127.88118631]
[1738514353291,22.90109993,207.27,207.12,9.5934]
[1738514353495,0.03368175,207.24,207.22,0.03697543]
[1738514353797,0.03368175,207.24,207.12,9.5934]
[1738514353994,22.90109993,207.27,207.12,9.5934]
[1738514354187,22.90109993,207.27,207.21,0.03694422]
[1738514354393,22.90109993,207.22,207.08,4.8301]
[1738514354594,22.90109993,207.18,207.0,2.991]
[1738514355291,4.52,207.19,207.03,22.90109993]
[1738514355595,22.90109993,207.18,207.07,0.03341444]
[1738514355891,0.03510781,207.11,207.07,0.03341444]
[1738514356098,27.40109993,207.3,207.07,22.93451437]
[1738514356299,27.40109993,207.3,207.12,22.90109993]
[1738514357097,22.90109993,207.26,207.09,3.8545]
[1738514357296,22.90109993,207.22,207.09,3.8545]
[1738514357500,0.03660355,207.23,207.19,0.03331804]
[1738514357799,22.90109993,207.22,207.0,25.89209993]
[1738514358097,22.90109993,207.15,207.0,2.991]
[1738514358995,0.03408332,207.1,207.05,0.03479484]
[1738514359398,4.8303,207.08,207.05,0.03479484]
[1738514359597,0.03408332,207.1,206.92,25.89899993]
[1738514359901,22.90109993,207.07,206.92,2.9979]
[1738514360096,22.90109993,207.02,206.89,3.6794]
[1738514360398,4.46,207.05,206.92,22.90109993]
[1738514360702,4.46,207.05,206.89,3.6794]
[1738514361100,0.0355247,207.01,206.96,0.03479704]
[1738514361504,4.8325,206.99,206.96,0.03479704]
[1738514361697,0.0355247,207.01,206.96,0.03479704]
[1738514362499,22.90109993,206.98,206.8,22.90109993]
[1738514363806,0.03252101,206.92,206.87,0.03420646]
[1738514364103,0.03252101,206.92,206.72,3.6179]
[1738514364104,22.90109993,206.9,206.72,6.5454]
[1738514364901,22.90109993,206.94,206.72,6.5454]
[1738514365108,22.90109993,206.98,206.78,22.90109993]
[1738514365301,100.4325,206.99,206.9,4.8343]
[1738514365503,95.6,206.99,206.82,22.90109993]
[1738514365707,0.03494018,206.9,206.76,22.90109993]
[1738514365902,22.93604011,206.9,206.72,6.5454]
[1738514366103,22.90109993,206.94,206.72,6.5454]
[1738514366408,22.90109993,206.94,206.8,4.8367]
[1738514366409,4.8346,206.9,206.8,4.8367]
[1738514366608,22.90109993,206.94,206.79,22.90109993]
[1738514366804,22.90109993,206.98,206.79,22.90109993]
[1738514366999,22.90109993,207.02,206.87,22.90109993]
[1738514367205,22.90109993,207.06,206.87,22.90109993]
[1738514367405,22.90109993,207.06,206.77,4.42]
[1738514367406,0.03628582,206.97,206.92,0.03227122]
[1738514367803,22.90109993,206.98,206.79,22.90109993]
[1738514368002,22.90109993,207.0,206.79,22.90109993]
[1738514368202,0.03422323,206.97,206.92,0.03578465]
[1738514368607,22.90109993,206.95,206.79,22.90109993]
[1738514369115,22.90109993,206.95,206.92,0.0331119]
[1738514369304,22.90109993,206.95,206.75,22.90109993]
[1738514369509,4.4,206.97,206.72,6.5454]
[1738514369510,22.90109993,206.91,206.72,6.5454]
[1738514369709,4.8348,206.89,206.77,4.8373]
[1738514369907,22.90109993,206.91,206.81,0.03371462]
[1738514370308,0.03495475,206.85,206.81,0.03371462]
[1738514371008,22.90109993,206.83,206.72,2.9275]
[1738514371203,4.8368,206.8,206.72,2.9275]
[1738514371401,4.38,206.84,206.72,2.9275]
[1738514371709,4.8368,206.8,206.72,7.766]
[1738514371913,4.38,206.84,206.72,2.9275]
[1738514372106,22.90109993,206.91,206.72,2.9275]
[1738514372412,22.90109993,206.91,206.83,4.836]
[1738514372413,4.8343,206.91,206.83,4.836]
[1738514372612,22.90109993,206.91,206.74,22.90109993]
[1738514372907,22.90109993,206.83,206.72,2.9275]
[1738514373213,22.90109993,206.83,206.66,22.90109993]
[1738514373412,22.90109993,206.83,206.67,3.1325]
[1738514373614,0.03652382,206.8,206.75,0.03473765]
[1738514373809,4.8375,206.77,206.75,0.03473765]
[1738514374010,0.03652382,206.8,206.75,0.03473765]
[1738514374913,4.8371,206.79,206.75,0.03473765]
[1738514375215,0.03652382,206.8,206.75,0.03473765]
[1738514376208,4.8341,206.92,206.84,4.8358]
[1738514376413,4.36,206.94,206.76,3.663]
[1738514377317,4.36,206.94,206.78,22.90109993]
[1738514377508,4.36,206.94,206.76,3.663]
[1738514377806,0.03401288,206.87,206.83,0.03362326]
[1738514378006,4.86921288,206.87,206.83,0.03362326]
[1738514378211,22.93511281,206.87,206.83,2.326e-05]
[1738514378614,4.8356,206.85,206.83,2.326e-05]
[1738514379818,0.03401288,206.87,206.83,2.326e-05]
[1738514380715,0.03401288,206.87,206.83,4.83602326]
[1738514380918,22.90109993,207.0,206.83,2.326e-05]
[1738514381120,22.90109993,207.04,206.86,22.90109993]
[1738514381518,22.90109993,206.96,206.84,3.581]
[1738514381921,4.8333,206.95,206.84,3.581]
[1738514382120,22.90109993,207.0,206.84,3.581]
[1738514382320,0.03155367,206.92,206.88,0.0330466]
[1738514382720,68.12284439,207.06,206.88,22.93414653]
[1738514382917,4.38,207.07,206.88,22.90109993]
[1738514383115,22.90109993,207.02,206.84,26.48209993]
[1738514383316,22.90109993,206.94,206.84,3.581]
[1738514383618,22.90109993,206.94,206.76,22.90109993]
[1738514383819,22.90109993,207.0,206.85,4.8355]
[1738514384115,0.03449254,206.91,206.86,0.03555307]
[1738514384322,0.03449254,206.91,206.87,4.835]
[1738514384519,22.90109993,207.04,206.84,22.90109993]
[1738514384724,22.90109993,207.04,206.86,0.03547997]
[1738514385024,0.0339951,206.91,206.89,4.8346]
[1738514385224,4.38,207.07,206.88,22.90109993]
[1738514385422,22.90109993,207.04,206.84,22.90109993]
[1738514385818,22.90109993,207.0,206.84,22.90109993]
[1738514386018,22.90109993,206.96,206.77,6.6518]
[1738514386223,22.90109993,206.92,206.77,6.6518]
[1738514386422,0.03273531,206.89,206.84,0.03242877]
[1738514387028,4.8349,206.88,206.84,0.03242877]
[1738514387424,0.03273531,206.89,206.84,0.03242877]
[1738514388723,4.8354,206.86,206.84,0.03242877]
[1738514389529,22.90109993,206.88,206.84,0.03242877]
[1738514389719,0.03273531,206.89,206.84,0.03242877]
[1738514390320,0.03273531,206.89,206.86,4.8353]
[1738514390519,0.03273531,206.89,206.84,0.03242877]
[1738514391929,0.03273531,206.89,206.87,4.8349]
[1738514392129,0.03273531,206.89,206.84,0.03242877]
[1738514392935,4.8349,206.88,206.84,0.03242877]
[1738514393233,0.03273531,206.89,206.84,0.03242877]
[1738514394234,4.8349,206.88,206.84,0.03242877]
[1738514394435,0.03273531,206.89,206.84,0.03242877]
[1738514394733,22.90109993,206.88,206.84,0.03242877]
[1738514394929,4.8355,206.86,206.84,0.03242877]
[1738514395133,4.8355,206.86,206.84,2.877e-05]
[1738514396135,0.03273531,206.89,206.84,2.877e-05]
[1738514396526,4.8356,206.85,206.84,2.877e-05]
[1738514397136,0.03273531,206.89,206.84,2.877e-05]
[1738514399038,22.90109993,207.0,206.84,2.877e-05]
[1738514399229,22.90109993,206.92,206.84,2.877e-05]
[1738514399429,22.90109993,206.92,206.79,2.9958]
[1738514400131,4.8349,206.89,206.79,7.8327]
[1738514400336,0.03313745,206.88,206.83,0.0324909]
[1738514400832,4.8338,206.93,206.79,25.89689993]
[1738514401036,0.03119088,206.88,206.83,0.03308738]
[1738514401233,4.3,207.09,206.87,22.90109993]
[1738514401434,4.3,207.09,206.91,22.90109993]
[1738514401642,22.90109993,207.02,206.88,6.5913]
[1738514401839,4.8335,206.94,206.88,6.5913]
[1738514402040,22.90109993,207.02,206.88,2.876]
[1738514402338,4.8305,207.07,206.93,0.03181496]
[1738514402543,22.90109993,207.14,206.95,22.90109993]
[1738514402739,18.76736386,207.16,206.99,22.90109993]
[1738514402939,22.90109993,207.14,206.91,22.90109993]
[1738514403133,18.76736386,207.16,207.02,0.03525741]
[1738514403134,0.03450837,207.07,207.02,0.03525741]
[1738514403331,22.90109993,207.06,207.02,0.03525741]
[1738514403532,0.03450837,207.07,206.91,22.90109993]
[1738514403841,22.90109993,207.1,207.02,0.03403573]
[1738514404042,22.90109993,207.1,206.91,22.90109993]
[1738514404245,0.03280244,207.01,206.91,22.90109993]